bitfinex/quotes_SOLUSD_20250604
["timestamp","ask_amount","ask_price","bid_price","bid_amount"]
[1749069103868,20.09361826,154.32,154.3,52.36]
[1749069104371,20.09361826,154.31,154.3,52.36]
[1749069108897,148.1,154.33,154.3,52.36]
[1749069109097,20.09361826,154.31,154.3,52.36]
[1749069109577,20.09361826,154.32,154.3,52.36]
[1749069110078,148.1,154.33,154.3,52.36]
[1749069110284,168.19361826,154.33,154.3,52.36]
[1749069111301,20.09361826,154.32,154.3,52.36]
[1749069111685,148.1,154.33,154.3,52.36]
[1749069111885,20.09361826,154.32,154.3,52.36]
[1749069114301,148.1,154.33,154.3,52.36]
[1749069114487,20.09361826,154.32,154.3,52.36]
[1749069115501,148.1,154.33,154.3,52.36]
[1749069115502,168.19361826,154.33,154.3,52.36]
[1749069116910,20.09361826,154.32,154.3,52.36]
[1749069118221,20.09361826,154.32,154.31,11.16]
[1749069121116,148.1,154.33,154.31,11.16]
[1749069121314,20.09361826,154.32,154.31,11.16]
[1749069121520,20.09361826,154.32,154.31,52.26]
[1749069122239,20.09361826,154.32,154.31,11.16]
[1749069122413,20.09361826,154.32,154.31,52.26]
[1749069123531,20.09361826,154.32,154.31,11.16]
[1749069123733,20.09361826,154.32,154.31,52.26]
[1749069126120,148.1,154.33,154.31,52.26]
[1749069127119,19.07613357,154.39,154.32,20.09361826]
[1749069127120,148.1,154.38,154.32,20.09361826]
[1749069127440,148.1,154.38,154.35,20.09361826]
[1749069127632,148.1,154.38,154.36,41.1]
[1749069127837,148.1,154.38,154.37,11.16]
[1749069129550,26.0,154.4,154.37,11.16]
[1749069129842,20.09361826,154.38,154.37,11.16]
[1749069130046,20.09361826,154.38,154.37,52.26]
[1749069130716,20.09361826,154.38,154.37,52.24]
[1749069133426,20.09361826,154.38,154.33,20.09361826]
[1749069133623,148.1,154.39,154.34,52.2]
[1749069133624,20.09361826,154.37,154.34,52.2]
[1749069134020,20.09361826,154.35,154.31,20.09361826]
[1749069134235,20.09361826,154.35,154.32,52.2]
[1749069134434,20.09361826,154.35,154.33,41.08]
[1749069135346,20.09361826,154.35,154.32,11.12]
[1749069135520,20.09361826,154.35,154.34,41.08]
[1749069138723,20.09361826,154.36,154.34,41.08]
[1749069139626,20.09361826,154.38,154.34,41.08]
[1749069139958,20.09361826,154.38,154.34,61.17361826]
[1749069140541,20.09361826,154.37,154.34,41.08]
[1749069141462,148.1,154.39,154.34,41.08]
[1749069141961,20.09361826,154.37,154.34,41.08]
[1749069147033,148.1,154.39,154.34,41.08]
[1749069147237,148.1,154.39,154.35,20.23577983]
[1749069147481,168.19361826,154.39,154.35,20.23577983]
[1749069147672,20.09361826,154.38,154.35,0.14216157]
[1749069148247,148.1,154.39,154.36,52.16]
[1749069148544,20.09361826,154.37,154.36,11.12]
[1749069148756,20.09361826,154.37,154.36,52.16]
[1749069150240,20.09361826,154.37,154.36,11.12]
[1749069150448,20.09361826,154.37,154.35,11.12]
[1749069150678,10.1164883,154.38,154.36,41.04]
[1749069150850,20.09361826,154.37,154.35,11.12]
[1749069151047,6.47878198,154.35,154.33,11.12]
[1749069151256,20.09361826,154.34,154.33,11.12]
[1749069151553,26.0,154.34,154.33,11.12]
[1749069151748,46.09361826,154.34,154.33,11.12]
[1749069152170,46.09361826,154.34,154.33,52.16]
[1749069152559,46.09361826,154.34,154.33,11.12]
[1749069152761,46.09361826,154.34,154.33,52.14]
[1749069159872,26.0,154.34,154.33,52.14]
[1749069160067,46.09361826,154.34,154.33,52.14]
[1749069162582,220.76643828,154.34,154.33,11.12]
[1749069162765,241.07054871,154.34,154.3,41.02]
[1749069162972,46.09361826,154.31,154.3,41.02]
[1749069164581,46.09361826,154.31,154.28,11.08]
[1749069164756,26.0,154.31,154.29,41.02]
[1749069164955,20.09361826,154.3,154.28,11.08]
[1749069165181,20.09361826,154.29,154.28,11.08]
[1749069165567,20.09361826,154.29,154.28,52.1]
[1749069167085,26.0,154.31,154.28,52.1]
[1749069167086,20.09361826,154.3,154.28,52.1]
[1749069167302,20.09361826,154.31,154.29,11.08]
[1749069167582,20.09361826,154.31,154.3,41.02]
[1749069167788,26.0,154.33,154.3,41.02]
[1749069167974,20.09361826,154.32,154.3,41.02]
[1749069168703,20.09361826,154.34,154.3,61.11361826]
[1749069168986,20.09361826,154.37,154.33,20.09361826]
[1749069169190,20.09361826,154.38,154.34,41.02]
[1749069169388,20.09361826,154.37,154.35,11.08]
[1749069169572,20.09361826,154.37,154.36,41.0]
[1749069171091,26.0,154.39,154.36,41.0]
[1749069171272,20.09361826,154.37,154.36,41.0]
[1749069174396,148.1,154.39,154.36,41.0]
[1749069174612,168.19361826,154.39,154.36,41.0]
[1749069174903,20.09361826,154.39,154.36,41.0]
[1749069175674,20.09361826,154.38,154.36,41.0]
[1749069176364,20.09361826,154.39,154.36,41.0]
[1749069176769,174.1,154.44,154.36,61.09361826]
[1749069176991,20.09361826,154.4,154.37,0.14216157]
[1749069177277,20.09361826,154.41,154.37,20.23577983]
[1749069177971,148.1,154.43,154.37,20.23577983]
[1749069178182,27.6133,154.46,154.37,20.23577983]
[1749069178183,20.09361826,154.41,154.37,20.23577983]
[1749069178385,20.09361826,154.42,154.37,20.23577983]
[1749069180988,20.09361826,154.42,154.37,57.49577983]
[1749069181807,20.09361826,154.41,154.37,57.49577983]
[1749069182315,20.09361826,154.41,154.38,18.933972]
[1749069182478,20.09361826,154.43,154.39,62.71227983]
[1749069185281,20.09361826,154.43,154.39,42.61866157]
[1749069185491,154.57387272,154.47,154.39,41.10216157]
[1749069185805,20.09361826,154.42,154.39,41.10216157]
[1749069187894,20.09361826,154.42,154.39,0.14216157]
[1749069188089,20.09361826,154.42,154.4,52.02]
[1749069188496,20.09361826,154.44,154.4,72.11361826]
[1749069189037,20.09361826,154.45,154.41,20.23577983]
[1749069189188,168.19361826,154.46,154.42,20.09361826]
[1749069189387,20.09361826,154.48,154.43,61.17577983]
[1749069189586,20.09361826,154.48,154.44,20.09361826]
[1749069190504,174.1,154.53,154.44,20.09361826]
[1749069190717,20.09361826,154.48,154.44,20.09361826]
[1749069191406,20.09361826,154.47,154.43,61.17577983]
[1749069192826,20.09361826,154.5,154.45,20.23577983]
[1749069193019,20.09361826,154.49,154.46,11.04]
[1749069193220,20.09361826,154.49,154.47,40.94]
[1749069193925,148.1,154.53,154.47,61.03361826]
[1749069194124,148.1,154.53,154.48,20.09361826]
[1749069194428,20.09361826,154.53,154.49,20.09361826]
[1749069194601,20.09361826,154.53,154.48,39.16975183]
[1749069194793,20.09361826,154.52,154.48,0.14216157]
[1749069194993,20.09361826,154.5,154.47,42.5463]
[1749069198626,148.1,154.55,154.47,42.5463]
[1749069198812,20.09361826,154.5,154.47,42.5463]
[1749069199401,148.1,154.55,154.47,42.5463]
[1749069199626,148.1,154.55,154.49,20.09361826]
[1749069199827,20.09361826,154.53,154.49,20.09361826]
[1749069200616,20.09361826,154.52,154.48,39.16975183]
[1749069200930,20.09361826,154.54,154.5,0.14216157]
[1749069201233,20.09361826,154.54,154.51,40.9]
[1749069201409,20.09361826,154.54,154.52,11.04]
[1749069201802,20.09361826,154.53,154.52,11.04]
[1749069204206,20.09361826,154.53,154.52,51.94]
[1749069204405,20.09361826,154.53,154.52,11.04]
[1749069204722,20.09361826,154.53,154.52,51.94]
[1749069204923,20.09361826,154.53,154.52,11.04]
[1749069205099,20.09361826,154.53,154.52,51.94]
[1749069205700,20.09361826,154.53,154.52,11.04]
[1749069205916,20.09361826,154.53,154.52,51.92]
[1749069206723,21.67111826,154.53,154.52,11.04]
[1749069206905,21.67111826,154.53,154.5,11.04]
[1749069206906,26.0,154.51,154.5,11.04]
[1749069207111,66.18723652,154.51,154.48,51.92]
[1749069207322,40.18723652,154.49,154.48,51.92]
[1749069207924,20.09361826,154.49,154.48,51.92]
[1749069210837,40.18723652,154.49,154.48,51.92]
[1749069211340,40.18723652,154.49,154.48,11.04]
[1749069212842,18.933972,154.5,154.48,11.04]
[1749069213021,40.18723652,154.49,154.48,11.04]
[1749069214044,26.0,154.51,154.48,11.04]
[1749069214344,20.09361826,154.49,154.48,11.04]
[1749069215152,40.18723652,154.49,154.48,11.04]
[1749069215856,32.47235234,154.51,154.48,11.04]
[1749069215857,26.0,154.51,154.48,11.04]
[1749069216062,20.09361826,154.49,154.48,11.04]
[1749069227525,40.18723652,154.49,154.48,11.04]
[1749069228134,40.18723652,154.49,154.48,51.9]
[1749069228540,40.18723652,154.49,154.41,26.14216157]
[1749069228750,20.09361826,154.43,154.42,26.0]
[1749069229757,20.09361826,154.43,154.42,66.86]
[1749069230653,20.09361826,154.43,154.42,26.0]
[1749069230960,20.09361826,154.43,154.42,66.84]
[1749069234269,20.09361826,154.43,154.42,51.84]
[1749069235839,20.09361826,154.43,154.42,11.0]
[1749069239571,40.18723652,154.43,154.41,51.84]
[1749069239742,20.09361826,154.42,154.41,51.84]
[1749069239942,40.18723652,154.42,154.41,51.84]
[1749069240141,20.09361826,154.42,154.41,11.0]
[1749069241544,8.1909529,154.47,154.41,11.0]
[1749069241545,1.5749,154.47,154.41,11.0]
[1749069241765,20.09361826,154.42,154.41,11.0]
[1749069243270,6.4329,154.49,154.41,11.0]
[1749069243578,20.09361826,154.45,154.41,31.09361826]
[1749069243787,20.09361826,154.47,154.44,0.14216157]
[1749069243941,20.09361826,154.48,154.45,40.84]
[1749069244344,20.09361826,154.47,154.45,40.84]
[1749069244580,20.09361826,154.46,154.45,40.84]
[1749069245183,148.1,154.5,154.45,40.84]
[1749069245686,20.09361826,154.46,154.45,40.84]
[1749069246383,148.1,154.5,154.45,40.84]
[1749069246575,20.09361826,154.47,154.45,40.84]
[1749069249082,148.1,154.5,154.45,40.84]
[1749069249285,20.09361826,154.49,154.45,42.3991]
[1749069249468,20.09361826,154.49,154.46,0.14216157]
[1749069249778,20.09361826,154.49,154.47,11.0]
[1749069250086,20.09361826,154.49,154.48,40.82]
[1749069250478,20.09361826,154.49,154.48,40.96216157]
[1749069250979,20.09361826,154.5,154.48,40.96216157]
[1749069254286,20.09361826,154.49,154.48,40.82]
[1749069257166,149.7344,154.55,154.48,40.82]
[1749069257390,20.09361826,154.49,154.48,40.82]
[1749069257774,20.09361826,154.5,154.48,40.82]
[1749069258087,20.09361826,154.52,154.48,40.82]
[1749069258385,20.09361826,154.53,154.49,20.52010297]
[1749069258997,20.09361826,154.52,154.49,0.42648471]
[1749069260964,20.09361826,154.52,154.49,0.14216157]
[1749069261162,20.09361826,154.51,154.49,0.14216157]
[1749069261790,20.09361826,154.52,154.49,0.14216157]
[1749069263372,20.09361826,154.54,154.51,0.14216157]
[1749069263598,20.09361826,154.54,154.52,40.78]
[1749069263903,20.09361826,154.54,154.53,10.96]
[1749069267100,154.5095,154.58,154.53,10.96]
[1749069267278,20.09361826,154.54,154.53,10.96]
[1749069271297,168.19361826,154.54,154.53,10.96]
[1749069271610,169.83471826,154.54,154.53,10.96]
[1749069275625,148.1,154.54,154.53,10.96]
[1749069275929,168.19361826,154.54,154.53,10.96]
[1749069276096,148.1,154.54,154.53,10.96]
[1749069276292,168.19361826,154.54,154.53,10.96]
[1749069276526,148.1,154.54,154.53,10.96]
[1749069276696,168.19361826,154.54,154.53,10.96]
[1749069278115,148.1,154.54,154.53,10.96]
[1749069278303,168.19361826,154.54,154.53,10.96]
[1749069279025,168.19361826,154.54,154.52,51.7]
[1749069279195,20.09361826,154.53,154.52,10.96]
[1749069290308,26.0,154.51,154.5,40.72]
[1749069290509,46.09361826,154.51,154.5,40.72]
[1749069291396,26.0,154.51,154.5,40.72]
[1749069291716,20.09361826,154.51,154.5,40.72]
[1749069291900,29.65600187,154.53,154.5,40.72]
[1749069291901,26.0,154.53,154.5,40.72]
[1749069292105,20.09361826,154.51,154.5,40.72]
[1749069296221,148.1,154.52,154.5,40.72]
[1749069296530,20.09361826,154.51,154.5,40.72]
[1749069298006,168.19361826,154.52,154.5,40.72]
[1749069300423,20.09361826,154.51,154.5,40.72]
[1749069302806,20.09361826,154.51,154.49,10.94]
[1749069303024,148.1,154.52,154.5,40.7]
[1749069303204,148.1,154.52,154.51,40.7]
[1749069303413,148.1,154.52,154.49,10.94]
[1749069303717,148.1,154.52,154.5,40.7]
[1749069304213,20.09361826,154.51,154.49,10.94]
[1749069304425,20.09361826,154.5,154.49,10.94]
[1749069304626,20.09361826,154.5,154.49,51.64]
[1749069305710,20.09361826,154.5,154.49,10.94]
[1749069306411,20.09361826,154.5,154.49,51.64]
[1749069309251,72.65972842,154.5,154.45,37.24]
[1749069309536,72.65972842,154.5,154.47,10.94]
[1749069309537,46.09361826,154.48,154.47,10.94]
[1749069310108,26.0,154.48,154.47,10.94]
[1749069310418,148.1,154.49,154.47,10.94]
[1749069310612,148.1,154.49,154.48,40.7]
[1749069310813,168.19361826,154.49,154.48,40.7]
[1749069311804,168.19361826,154.49,154.47,10.94]
[1749069312003,40.18723652,154.48,154.47,10.94]
[1749069312442,40.18723652,154.48,154.47,51.62]
[1749069315012,69.84304057,154.48,154.47,10.94]
[1749069316508,26.0,154.45,154.44,10.94]
[1749069316852,18.64964886,154.43,154.38,40.68]
[1749069317011,20.09361826,154.39,154.38,40.68]
[1749069317366,20.09361826,154.39,154.36,10.94]
[1749069317525,20.09361826,154.37,154.36,10.94]
[1749069318052,20.09361826,154.37,154.36,51.62]
[1749069318419,148.1,154.42,154.36,51.62]
[1749069318729,20.09361826,154.39,154.36,51.62]
[1749069318932,20.09361826,154.39,154.37,0.14216157]
[1749069319109,20.09361826,154.39,154.38,40.68]
[1749069319910,20.09361826,154.4,154.38,40.68]
[1749069321649,20.09361826,154.39,154.38,40.68]
[1749069322437,20.09361826,154.4,154.38,40.68]
[1749069323233,20.09361826,154.39,154.38,40.68]
[1749069325438,20.09361826,154.39,154.36,10.94]
[1749069325648,30.74530739,154.44,154.37,40.68]
[1749069325848,20.09361826,154.38,154.37,40.68]
[1749069326323,174.1,154.44,154.37,40.68]
[1749069327040,174.1,154.44,154.36,10.94]
[1749069327217,174.1,154.44,154.38,40.68]
[1749069327530,20.09361826,154.39,154.38,40.68]
[1749069328868,174.1,154.44,154.36,10.94]
[1749069328869,180.57509098,154.44,154.36,10.94]
[1749069329028,20.09361826,154.37,154.36,10.94]
[1749069329234,20.09361826,154.37,154.36,51.62]
[1749069329431,20.09361826,154.37,154.36,10.94]
[1749069329723,20.09361826,154.37,154.36,51.62]
[1749069329953,20.09361826,154.37,154.36,10.94]
[1749069330353,26.0,154.37,154.36,10.94]
[1749069330558,46.09361826,154.37,154.36,10.94]
[1749069330733,26.0,154.37,154.36,10.94]
[1749069331058,46.09361826,154.37,154.36,10.94]
[1749069331427,26.0,154.37,154.36,10.94]
[1749069331627,46.09361826,154.37,154.36,10.94]
[1749069332340,46.09361826,154.37,154.36,51.62]
[1749069335158,26.0,154.37,154.36,51.62]
[1749069335358,46.09361826,154.37,154.36,51.62]
[1749069335559,46.09361826,154.37,154.36,10.94]
[1749069335770,46.09361826,154.37,154.36,51.62]
[1749069335957,46.09361826,154.37,154.36,10.94]
[1749069336153,46.09361826,154.37,154.36,51.62]
[1749069336756,46.09361826,154.37,154.36,10.94]
[1749069336951,148.1,154.39,154.36,51.62]
[1749069337178,20.09361826,154.38,154.36,51.62]
[1749069337384,20.09361826,154.39,154.36,51.62]
[1749069338555,20.09361826,154.37,154.36,51.62]
[1749069339273,20.09361826,154.37,154.36,10.94]
[1749069339772,20.09361826,154.37,154.36,51.62]
[1749069342754,20.09361826,154.37,154.36,10.94]
[1749069343076,20.09361826,154.37,154.36,51.62]
[1749069343285,20.09361826,154.37,154.36,10.94]
[1749069343477,20.09361826,154.37,154.36,51.62]
[1749069343478,46.09361826,154.37,154.36,51.62]
[1749069343969,46.09361826,154.37,154.36,10.94]
[1749069344179,46.09361826,154.37,154.33,10.9]
[1749069344485,148.1,154.36,154.35,40.68]
[1749069345474,168.19361826,154.36,154.35,40.68]
[1749069346648,168.19361826,154.36,154.33,10.9]
[1749069346967,148.1,154.36,154.35,40.68]
[1749069348165,168.19361826,154.36,154.35,40.68]
[1749069348869,20.09361826,154.36,154.35,40.68]
[1749069351567,20.52010297,154.4,154.35,40.68]
[1749069351568,26.28432314,154.4,154.35,40.68]
[1749069351766,20.09361826,154.36,154.35,40.68]
[1749069351957,26.0,154.38,154.35,40.68]
[1749069352155,20.09361826,154.36,154.35,40.68]
[1749069354469,20.09361826,154.36,154.33,10.9]
[1749069354667,6.47787886,154.38,154.35,40.66]
[1749069354877,20.09361826,154.36,154.35,40.66]
[1749069358175,26.0,154.39,154.35,40.66]
[1749069358487,20.09361826,154.36,154.35,40.66]
[1749069360772,26.0,154.38,154.35,40.66]
[1749069360969,20.09361826,154.36,154.35,40.66]
[1749069361285,26.0,154.39,154.35,40.66]
[1749069361486,20.09361826,154.36,154.35,40.66]
[1749069366092,20.09361826,154.36,154.28,37.50432314]
[1749069366394,20.09361826,154.31,154.29,51.68216157]
[1749069366696,20.09361826,154.32,154.29,51.68216157]
[1749069366895,20.09361826,154.33,154.29,71.77577983]
[1749069367268,20.09361826,154.34,154.3,20.09361826]
[1749069367775,20.09361826,154.34,154.29,71.77577983]
[1749069368378,20.09361826,154.33,154.29,51.68216157]
[1749069369780,20.09361826,154.32,154.29,51.68216157]
[1749069370180,20.09361826,154.32,154.29,11.02216157]
[1749069370378,20.09361826,154.32,154.3,40.64]
[1749069371382,148.1,154.35,154.3,40.64]
[1749069371383,20.09361826,154.33,154.3,40.64]
[1749069374094,20.09361826,154.32,154.3,40.64]
[1749069374778,148.1,154.35,154.3,40.64]
[1749069374982,20.09361826,154.33,154.3,40.64]
[1749069375382,148.1,154.35,154.3,40.64]
[1749069375592,148.1,154.35,154.31,20.23577983]
[1749069375986,168.19361826,154.35,154.31,20.23577983]
[1749069376372,168.19361826,154.35,154.31,0.14216157]
[1749069376574,20.09361826,154.33,154.3,40.64]
[1749069376890,20.09361826,154.32,154.31,10.88]
[1749069380716,154.5788557,154.35,154.31,51.52]
[1749069380717,148.1,154.35,154.31,51.52]
[1749069380893,20.09361826,154.33,154.31,51.52]
[1749069381221,148.1,154.35,154.31,51.52]
[1749069381386,168.19361826,154.35,154.31,71.61361826]
[1749069381584,148.1,154.35,154.31,71.61361826]
[1749069382125,148.1,154.35,154.32,20.09361826]
[1749069383224,148.1,154.39,154.34,26.0]
[1749069383386,20.09361826,154.37,154.35,40.64]
[1749069383595,20.09361826,154.37,154.36,40.64]
[1749069383931,24.8570766,154.37,154.36,40.64]
[1749069384334,20.09361826,154.37,154.36,40.64]
[1749069385190,24.85264975,154.37,154.36,40.64]
[1749069385391,20.09361826,154.37,154.36,40.64]
[1749069385611,24.85264307,154.37,154.36,40.64]
[1749069385815,24.85268461,154.37,154.32,26.0]
[1749069386129,3.6578214,154.38,154.36,10.86]
[1749069386317,148.1,154.39,154.37,40.64]
[1749069386623,8.41677817,154.38,154.37,40.64]
[1749069386827,8.41674864,154.38,154.37,40.64]
[1749069387004,8.41689397,154.38,154.37,40.64]
[1749069387188,8.41693545,154.38,154.37,40.64]
[1749069387391,23.75152353,154.38,154.37,40.64]
[1749069387593,28.51067122,154.38,154.37,40.64]
[1749069388925,28.51091203,154.38,154.37,40.64]
[1749069389224,53.6381449,154.38,154.36,10.86]
[1749069389431,28.51009799,154.37,154.36,10.86]
[1749069389819,28.51009799,154.37,154.36,51.48]
[1749069389990,28.51009799,154.37,154.36,10.86]
[1749069390193,23.75152353,154.37,154.36,51.48]
[1749069390422,23.75152353,154.37,154.28,38.8306]
[1749069390423,28.5097646,154.37,154.34,10.86]
[1749069390632,40.18723652,154.35,154.32,10.86]
[1749069390839,18.933972,154.32,154.29,10.86]
[1749069390995,20.09361826,154.3,154.28,10.86]
[1749069391309,20.09361826,154.29,154.28,10.86]
[1749069391493,20.09361826,154.29,154.28,51.48]
[1749069391690,24.8505163,154.29,154.28,51.48]
[1749069391909,24.8505163,154.29,154.28,10.86]
[1749069392115,24.8505163,154.29,154.28,51.48]
[1749069392512,24.85080003,154.29,154.28,51.48]
[1749069392818,20.09361826,154.29,154.28,51.48]
[1749069393017,24.85071845,154.29,154.28,51.48]
[1749069393216,20.09361826,154.29,154.28,51.48]
[1749069393401,24.85071835,154.29,154.28,51.48]
[1749069393602,20.09361826,154.29,154.28,51.48]
[1749069395324,20.09361826,154.29,154.21,6.5047]
[1749069395501,20.09361826,154.22,154.2,1.5619]
[1749069395704,20.09361826,154.21,154.19,37.26]
[1749069395901,20.09361826,154.2,154.19,37.26]
[1749069396112,20.09361826,154.2,154.19,48.12]
[1749069396296,26.0,154.25,154.19,88.74]
[1749069396496,20.09361826,154.21,154.19,88.74]
[1749069396996,193.033972,154.27,154.19,88.74]
[1749069397205,20.09361826,154.21,154.19,88.74]
[1749069398021,20.09361826,154.22,154.19,88.74]
[1749069398537,20.09361826,154.21,154.19,88.74]
[1749069400322,20.09361826,154.22,154.19,88.74]
[1749069400704,20.09361826,154.21,154.19,88.74]
[1749069401126,20.09361826,154.2,154.19,48.12]
[1749069401328,20.09361826,154.2,154.19,88.74]
[1749069401827,20.09361826,154.2,154.19,48.12]
[1749069402022,20.09361826,154.2,154.19,88.74]
[1749069403810,20.09361826,154.21,154.19,88.74]
[1749069404014,20.09361826,154.22,154.19,88.74]
[1749069407115,20.09361826,154.24,154.2,46.23577983]
[1749069407313,20.09361826,154.25,154.21,20.09361826]
[1749069407513,20.09361826,154.25,154.22,40.62]
[1749069410204,20.09361826,154.24,154.22,40.62]
[1749069415038,20.09361826,154.24,154.23,10.84]
[1749069420157,148.1,154.26,154.23,10.84]
[1749069420361,20.09361826,154.26,154.23,10.84]
[1749069420934,20.09361826,154.25,154.23,10.84]
[1749069421236,20.09361826,154.24,154.23,10.84]
[1749069423034,20.09361826,154.24,154.23,51.44]
[1749069423455,20.09361826,154.24,154.23,10.84]
[1749069423764,40.18723652,154.24,154.23,51.44]
[1749069423935,40.18723652,154.24,154.23,10.84]
[1749069424135,40.18723652,154.24,154.23,51.44]
[1749069424653,148.1,154.28,154.23,51.44]
[1749069424835,20.09361826,154.27,154.23,71.53361826]
[1749069425031,168.19361826,154.28,154.23,71.53361826]
[1749069425235,20.09361826,154.28,154.24,20.23577983]
[1749069426334,20.09361826,154.28,154.24,46.23577983]
[1749069426555,20.09361826,154.3,154.26,20.09361826]
[1749069426755,20.09361826,154.31,154.27,60.69361826]
[1749069427360,20.09361826,154.33,154.29,20.09361826]
[1749069427563,20.09361826,154.33,154.28,0.14216157]
[1749069427564,20.09361826,154.32,154.3,51.44]
[1749069428730,1.5069,154.37,154.3,51.44]
[1749069428731,20.09361826,154.33,154.3,51.44]
[1749069430138,20.09361826,154.32,154.3,51.44]
[1749069430542,20.09361826,154.31,154.3,51.44]
[1749069430748,20.09361826,154.31,154.3,51.42]
[1749069432065,1.5069,154.37,154.3,51.42]
[1749069432246,20.09361826,154.33,154.3,51.42]
[1749069433438,1.5069,154.37,154.3,51.42]
[1749069433439,20.09361826,154.32,154.3,51.42]
[1749069434060,1.5069,154.37,154.3,51.42]
[1749069434266,20.09361826,154.33,154.3,51.42]
[1749069434936,20.09361826,154.35,154.31,20.09361826]
[1749069435132,20.09361826,154.35,154.31,46.09361826]
[1749069435336,20.09361826,154.34,154.33,26.0]
[1749069435539,20.09361826,154.34,154.33,40.58]
[1749069436347,20.09361826,154.34,154.3,36.84]
[1749069436552,20.09361826,154.32,154.31,40.58]
[1749069439354,20.09361826,154.32,154.31,40.56]
[1749069441543,20.09361826,154.32,154.3,10.84]
[1749069441763,20.09361826,154.31,154.3,10.84]
[1749069441967,20.09361826,154.31,154.3,51.4]
[1749069444280,1.533,154.35,154.3,51.4]
[1749069444450,20.09361826,154.35,154.31,20.09361826]
[1749069445243,20.09361826,154.34,154.3,97.49361826]
[1749069445448,20.09361826,154.34,154.31,0.14216157]
[1749069445677,148.1,154.36,154.31,0.14216157]
[1749069445856,20.09361826,154.34,154.31,0.14216157]
[1749069446566,148.1,154.36,154.33,26.0]
[1749069446769,148.1,154.36,154.34,40.56]
[1749069446946,20.09361826,154.37,154.34,40.56]
[1749069447371,20.09361826,154.36,154.34,40.56]
[1749069450184,20.09361826,154.35,154.34,40.56]
[1749069452383,20.09361826,154.36,154.34,40.56]
[1749069455086,20.09361826,154.36,154.35,10.82]
[1749069456070,148.1,154.4,154.35,10.82]
[1749069456275,20.09361826,154.36,154.35,10.82]
[1749069457598,168.19361826,154.4,154.35,10.82]
[1749069457787,20.09361826,154.36,154.35,10.82]
[1749069459279,148.1,154.4,154.35,10.82]
[1749069459505,148.1,154.4,154.38,26.0]
[1749069459677,26.64971826,154.48,154.39,40.66216157]
[1749069459678,20.09361826,154.42,154.39,40.66216157]
[1749069460572,149.6839,154.47,154.39,40.66216157]
[1749069460778,20.09361826,154.42,154.39,40.66216157]
[1749069461712,20.09361826,154.41,154.39,40.66216157]
[1749069461876,20.09361826,154.4,154.39,26.0]
[1749069462079,20.09361826,154.4,154.39,66.52]
[1749069472311,20.09361826,154.4,154.39,66.5]
[1749069472489,20.09361826,154.4,154.39,77.28]
[1749069472701,20.09361826,154.4,154.39,36.78]
[1749069473206,20.09361826,154.4,154.39,51.28]
[1749069476127,15.09361826,154.4,154.39,51.28]
[1749069477020,35.18723652,154.4,154.39,51.28]
[1749069477498,35.18723652,154.4,154.39,10.78]
[1749069478029,1.5552,154.41,154.39,10.78]
[1749069478327,40.18723652,154.4,154.39,10.78]
[1749069481838,65.59789245,154.4,154.37,10.78]
[1749069482002,20.09361826,154.38,154.37,51.26]
[1749069483338,20.09361826,154.38,154.37,10.78]
[1749069486731,20.09361826,154.38,154.35,40.48]
[1749069486945,21.70031826,154.36,154.34,10.78]
[1749069487146,6.35370445,154.36,154.34,51.26]
[1749069487309,20.09361826,154.35,154.34,51.26]
[1749069487510,38.74326712,154.35,154.34,10.78]